Cogmind - Beta 14 --- EXPLORER MODE // 2024.08.26 @ 12:09:51 Player: Genju Result: Destroyed by G-34 Mercenary with Small Laser Performance ------------- Evolutions (0) 0 Regions Visited (1) 200 Robots Destroyed (10) 50 Value Destroyed (363) 363 Prototype IDs (0) 0 Alien Tech Used (0) 0 Bonus (0) 0 TOTAL SCORE: 613 Bonus ------- None Cogmind --------- Core Integrity 0/250 Matter 274/300 Energy 124/125 System Corruption 1% Temperature Warm (126) Movement Walking (120) Location -10/Materials Parts ------- > --- POWER (2) -------- Light Ion Engine > --- PROPULSION (2) --- Aluminum Leg Aluminum Leg > --- UTILITY (2) ------ Machine Analyzer Improved Targeting Computer > --- WEAPON (2) ------- Particle Gun Light Assault Rifle > --- INVENTORY (5) ---- Signal Interpreter Improved Terrain Scanner Improved Targeting Computer Light Assault Rifle Peak State ------------ > --- POWER ------------ Ion Engine Light Ion Engine > --- PROPULSION ------- Aluminum Leg Aluminum Leg > --- UTILITY ---------- Machine Analyzer Improved Targeting Computer > --- WEAPON ----------- Light Assault Rifle Light Assault Rifle > --- INVENTORY -------- Signal Interpreter Improved Terrain Scanner [Rating: 11] Favorites ----------- Power Ion Engine Engine Ion Engine Propulsion Aluminum Leg Leg Aluminum Leg Utility Targeting Computer Processor Targeting Computer Weapon Light Assault Rifle Energy Gun Particle Gun Ballistic Gun Light Assault Rifle Build | -11 -10 ------- Run | Yrd Mat Slots Evolved 1 | . 1 Power 1 | . 1 Propulsion . | . . Utility . | . . Weapon . | . . Parts Attached 12 | 6 6 Power 3 | 1 2 Engine 3 | 1 2 Core . | . . Reactor . | . . Propulsion 3 | 2 1 Treads . | . . Leg 3 | 2 1 Wheel . | . . Hover . | . . Flight . | . . Utility 3 | 1 2 Device . | . . Storage . | . . Processor 3 | 1 2 Hackware . | . . Protection . | . . Artifact . | . . Weapon 3 | 2 1 Energy Gun 1 | . 1 Energy Cannon . | . . Ballistic Gun 2 | 2 . Ballistic Cannon . | . . Launcher . | . . Special Weapon . | . . Impact Weapon . | . . Slashing Weapon . | . . Piercing Weapon . | . . Special Melee Weapon . | . . Unidentified Prototypes . | . . Parts Lost 2 | . 2 Power 2 | . 2 Propulsion . | . . Utility . | . . Weapon . | . . Highest Loss Streak 1 | . 1 To Critical Strikes . | . . Average Slot Usage (%) 84 | . 84 Engine 13 | . 13 Leg 25 | . 25 Processor 20 | . 20 Ballistic Gun 24 | . 24 Peak Build Rating 11 | 6 11 Average Rating 8 | 2 8 On Entrance 3 | . 6 Naked Turns . | . . Heaviest Build 10 | 7 10 Greatest Support 20 | 20 20 Greatest Overweight (x) 1 | 1 . Average Overweight (x) . | . . Largest Inventory Capacity 5 | 5 5 Average Capacity 5 | 5 5 Most Carried 5 | 5 5 Average Carried 2 | 2 2 Final Capacity 5 | 5 5 Final Carried 4 | 2 4 Class Distribution -------------------- 100% | Hacker-Mutant Dominant Class ---------------- Hacker-Mutant | -10/Materials Resources | -11 -10 ----------- Run | Yrd Mat Matter Collected 360 | 223 137 Remotely . | . . Salvage Created 369 | . 369 Parts 22 | . 22 Haulers Intercepted . | . . Recyclers Shooed . | . . Parts Field Recycled . | . . Retrieved Matter . | . . Parts Self-Destructed . | . . Prevented . | . . Kills | -11 -10 ------- Run | Yrd Mat Combat Hostiles Destroyed 8 | . 8 Guns 7 | . 7 AOE 1 | . 1 Classes Destroyed 2 | . 2 Watcher 2 | . 2 Grunt 8 | . 8 Best Kill Streak 4 | . 4 Combat Bots Only 4 | . 4 Max Kills in Single Turn 1 | . 1 Gunslinging . | . . Exploded 1 | . 1 Melee . | . . Uniques/NPCs Destroyed . | . . Combat | -11 -10 -------- Run | Yrd Mat Hostile Shots Fired 87 | . 87 Missed 32 | . 32 Damage Taken 653 | . 653 Core 251 | . 251 Absorbed by Shields . | . . Ignored by Resistances 394 | . 394 Core Remaining (%) 100 | 100 . Volleys Fired 37 | . 37 Largest 2 | . 2 Hottest 85 | . 85 Shots Fired 74 | . 74 Gun 74 | . 74 Cannon . | . . Launcher . | . . Special . | . . Kinetic 71 | . 71 Thermal 3 | . 3 Explosive . | . . Electromagnetic . | . . Robot Hit Streak 39 | . 39 Robot Miss Streak 3 | . 3 Penetration Max . | . . Secondary Targets 1 | . 1 Max Gunslinging Chain 1 | . 1 Shots Hit Robots 65 | . 65 Core Hits 28 | . 28 Critical Kills 1 | . 1 Critical Parts Destroyed 1 | . 1 Critical Strikes 3 | . 3 Burn 1 | . 1 Destroy 2 | . 2 Melee Attacks . | . . Impact . | . . Slashing . | . . Piercing . | . . Sneak Attacks . | . . Combat Hostiles . | . . Follow-up Attacks . | . . Damage Inflicted 567 | . 567 Guns 529 | . 529 Cannons . | . . Explosions 38 | . 38 Melee . | . . Ramming . | . . Kinetic 485 | . 485 Thermal 82 | . 82 Explosive . | . . Electromagnetic . | . . Impact . | . . Slashing . | . . Piercing . | . . Highest Corruption 1 | . 1 Average Corruption 1 | . 1 Corruption Purged . | . . Corruption Blocked . | . . Effects 1 | . 1 Data Loss (minor) 1 | . 1 Overload Shots . | . . Overflow Damage 56 | . 56 Projectiles . | . . Explosions 56 | . 56 Melee . | . . Knockbacks . | . . Impact . | . . Kinetic . | . . Secondary . | . . Self-Inflicted Damage 101 | . 101 Shots 2 | . 2 Rammed . | . . Targets Rammed . | . . Kicked . | . . Crushed . | . . Highest Temperature 120 | . 120 Average Temperature 39 | . 39 Received Heat Transfer 444 | . 444 Siege Activations . | . . Robots Corrupted . | . . Combat Hostiles . | . . Parts Fried . | . . Impact Corruptions . | . . Robots Melted . | . . Combat Hostiles . | . . Parts Melted . | . . Heat Transferred 285 | . 285 Parts Sabotaged . | . . Parts Stolen . | . . Parts Stripped . | . . Power Chain Reactions . | . . Alert | -11 -10 ------- Run | Yrd Mat Peak Influence 177 | . 177 Initial . | . . Average 72 | . 77 Maximum Alert Level . | . . Low Security (%) 100 | 100 100 Level 1 . | . . Level 2 . | . . Level 3 . | . . Level 4 . | . . Level 5 . | . . High Security . | . . Max Security . | . . Squads Dispatched . | . . Investigation . | . . Extermination . | . . Reinforcement . | . . Assault . | . . Garrison . | . . Intercept . | . . Searches Triggered . | . . Construction Impeded . | . . Haulers Reinforced . | . . Active Scanning Responses . | . . Cargo Convoy Interrupts . | . . Stealth | -11 -10 --------- Run | Yrd Mat Distress Signals . | . . Communications Jammed . | . . Distress Signals . | . . Times Spotted 14 | . 14 Peak Tracking Total 5 | . 5 Tactical Retreats 1 | . 1 Traps | -11 -10 ------- Run | Yrd Mat Traps Triggered 1 | . 1 Indirectly . | . . Trap Hack Attempts . | . . Triggered . | . . Disarmed . | . . Reprogrammed . | . . Reused . | . . Traps Extracted . | . . Installed . | . . Triggered . | . . Machines | -11 -10 ---------- Run | Yrd Mat Machines Disabled 2 | . 2 Max in Single Turn 2 | . 2 Machines Repaired . | . . Machines Dismantled . | . . Machines Sabotaged . | . . Overloaded Fab Kills . | . . Hacking | -11 -10 --------- Run | Yrd Mat Machines Accessed 7 | . 7 Terminals 6 | . 6 Fabricators . | . . Repair Stations . | . . Recycling Units 1 | . 1 Scanalyzers . | . . Garrison Access . | . . Total Hacks 20 | . 20 Successful 12 | . 12 Failed 8 | . 8 Catastrophic 1 | . 1 Database Lockouts . | . . Manual 18 | . 18 Terminals 17 | . 17 Fabricators . | . . Repair Stations . | . . Recycling Units 3 | . 3 Scanalyzers . | . . Garrison Access . | . . Terminal Hacks 5 | . 5 Part Schematic 5 | . 5 Fabricator Hacks . | . . Repair Station Hacks . | . . Recycling Unit Hacks 1 | . 1 Retrieve Components 1 | . 1 Scanalyzer . | . . Garrison Access Hacks . | . . Unauthorized Hacks 6 | . 6 Terminals 5 | . 5 Botnet 5 | . 5 Fabricators . | . . Repair Stations . | . . Recycling Units 1 | . 1 Reject 1 | . 1 Scanalyzers . | . . Garrison Access . | . . Data Cores Recovered . | . . Used . | . . Hacking Detections 6 | . 6 Full Trace Events . | . . Feedback Events . | . . Feedback Blocked . | . . Robot Schematics Acquired . | . . Robots Built . | . . Authchips . | . . Time . | . . Total Robot Build Rating . | . . Part Schematics Acquired 5 | . 5 Parts Built . | . . Authchips . | . . Time . | . . Total Part Build Rating . | . . Parts Repaired . | . . Time . | . . Parts Recycled . | . . Recycled Matter . | . . Retrieved Matter . | . . Retrieved Components 3 | . 3 Parts Scanalyzed . | . . Part Schematics Acquired . | . . Parts Damaged . | . . Bothacking | -11 -10 ------------ Run | Yrd Mat Used RIF Installer . | . . Robots Hacked . | . . Non-combat . | . . Combat . | . . Robot Hacks Applied . | . . Relay Couplers Released . | . . Fabnet Peak Effective % . | . . Robots Rewired . | . . Allies Hacked . | . . Hacks Repelled . | . . Allies | -11 -10 -------- Run | Yrd Mat Total Allies . | . . Largest Group . | . . Highest-Rated Group . | . . Highest-Rated Ally . | . . Total Orders . | . . Ally Attacks . | . . Total Damage . | . . Kills . | . . Allies Corrupted . | . . Allies Melted . | . . Intel | -11 -10 ------- Run | Yrd Mat Robot Analysis Total . | . . Derelict Logs Recovered . | . . Drone Launches . | . . Drone Recoveries . | . . Exploration | -11 -10 ------------- Run | Yrd Mat Turns Passed 672 | 45 627 Spaces Moved 460 | 31 429 Core 14 | 14 . Treads . | . . Legs 446 | 17 429 Wheels . | . . Hover . | . . Flight . | . . Fastest Speed 50 | 50 120 Average Speed 118 | 102 120 Slowest Speed 120 | 120 120 Overloaded Moves . | . . Propulsion Burnouts . | . . Robots Hopped . | . . Cave-ins Triggered . | . . Exploration Rate (%) 33 | 3 64 Regions Visited 1 Branch Regions . Pre-discovered Areas . | . . Known Exits Taken 1 | 1 . Unknown Exits Taken . | . . Scrap Searched . | . . Spaces Dug . | . . Terrain Destroyed 35 | . 35 Melee . | . . Projectile . | . . AOE 35 | . 35 Terrain Rammed . | . . Walls Destroyed . | . . Machines Disabled . | . . Actions | -11 -10 --------- Run | Yrd Mat Total 527 | 44 483 Wait 2 | . 2 Move 459 | 30 429 Hop . | . . Pick Up 15 | 8 7 Fast Attach . | . . Attach 10 | 6 4 Detach 1 | . 1 Swap 2 | . 2 Drop 1 | . 1 Fire 37 | . 37 Melee . | . . Ram . | . . Kick . | . . Crush . | . . Escape Stasis . | . . Rewire . | . . Trap . | . . Miscellaneous . | . . Route ------- -11/Scrapyard -10/Materials (discovered 3 exits: *Mat / *Min x2) History --------- Turn | Location | Event 16 | -11/Scrapyard | Identified exit to Materials 16 | -11/Scrapyard | Discovered exit to Materials (range 14) 46 | -11/Scrapyard | Entered Materials 46 | -10/Materials | Evolved 1 slot: Power x1 46 | -10/Materials | Identified exit to Mines 46 | -10/Materials | Discovered exit to Mines (range 14) 302 | -10/Materials | Build established: Hacker-Mutant 416 | -10/Materials | Discovered exit to Mines (range 9) 522 | -10/Materials | Identified exit to Materials 522 | -10/Materials | Discovered exit to Materials (range 15) 654 | -10/Materials | Core integrity fell below 50% 654 | -10/Materials | Core integrity fell below 20% 673 | -10/Materials | Destroyed by G-34 Mercenary with Small Laser Last Messages --------------- Acquired Lgt. Ion Engine. K-01 Serf collects debris. Acquired 11 matter. System corrupted: Component data lost. Fusion Modulator explodes. Lgt. Ion Engine destroyed. Destroyed Lgt. Ion Engine. >> Machine Analyzer network decryption results: Repair Station x1 G-47 Trooper destroyed. U-05 Engineer lays Concrete. Acquired Particle Gun. U-05 Engineer lays Concrete. U-05 Engineer builds a Wall. G-47 Trooper suffers critical hit (Burn). R-06 Scavenger collects Aluminum Leg. U-05 Engineer lays Concrete. R-06 Scavenger collects Aluminum Leg. U-05 Engineer builds a Wall. G-34 Mercenary destroyed. Map ----- +----------------------------------------------------+ | ??????# #########?# #?########???????????????? | | ??????# # #?# #????????????????????????? | | ??????# # #?# #????????????????????????? | | ??????#!= # #?# #????????????????????????? | | ??????# = + #?# #????????????????????????? | | ####### # #?# #????????????????????????? | | # # #?#^ #????????????????????????? | | # # ### #????????????????????????? | | # # + #????????????????????????? | | """ # # ####+#####?????????????????????? | | """" / + # #?????????????????????? | | """" # # # #?????????????????????? | | """" # ###+##### #?????????????????????? | | """ # #??# #?????????????????????? | | + #??# #?????????????????????? | | ####### #??# #?????????????????????? | | ??????###### #??# #?????????????????????? | | ????????#### ##?# #?????????????????????? | | ????????#""" #?# #?????????????????????? | | "??""???#" ###;;"""####????"""??????????????? | | "??Y"???#"| # " #?????"R"??????????????? | | "??""???#"" > # " ##????"?"??????????????? | | ????????#"| u " #?????????????????????? | | ????????#" ###########/###??????????? | | ????????#""" u g ????????? | | ????????#### ; r@ g ????????? | | ?########### ; = ^ ????????? | | ?# ;; t !%############???????????? | | ## % % a ; [ ????????????????????? | | % ;; # ?????????????????? | | ##########;; # """ """ """????????????? | | % %#????????###;;;;;### """ """?"""????????????? | | ## #??????????#######?# """ """?"""????????????? | | #% #??????????????????# ????????????????? | | # ###########?????????###??+#?????????????????? | | # # #????"""??????????????????????????? | | # # = #????"T"?"""??????????????????????? | | %+% # #????????"""??????????????????????? | | #%= / """ """ #????????"""??????????????????????? | | #* # """ """ #?????????????????????????????????? | | # # """ """ ??????????????????????????????????? | | # # ??????????????????????????????????? | | ## # ??????????????????????????????????? | | ? ##########??????????????????????????????????? | | #???????????????????????????????????????????? | | #???????????????????????????????????????????? | | ##??????????????????????????????????????????? | | ????????????????????????????????????????? | | ????????????????????????????????????????? | | ????????????????????????????????????????? | +----------------------------------------------------+ Best States ------------- Heat Dissipation 25 Energy Generation 15 Energy Capacity 275 Matter Stores 300 Matter Capacity 300 Sight Range 16 Terrain Scan Density 10 Resistance: KI 35 Resistance: TH 35 Resistance: EX 35 Resistance: EM 35 Resistance: I 35 Resistance: S 35 Resistance: P 35 Evasion (%) 55 Targeting Accuracy 6 Offensive Hacking 20 Item Schematics ----------------- Assault Rifle | -10/Materials | Hacked EM Pulse Gun | -10/Materials | Hacked Sensor Array | -10/Materials | Hacked Signal Interpreter | -10/Materials | Hacked Terrain Scanner | -10/Materials | Hacked Robot Schematics ------------------ None Fabricated ------------ Nothing Alien Tech Used ----------------- None Achievements -------------- None Challenges ------------ None Game ------ Seed AssemblyScrapoidNetwork Manual? 0 Play Time 00:09:47 Cumulative 30.0 hours Start 2024.08.26 @ 12:01:24 End 2024.08.26 @ 12:09:51 Sessions 1 Manual Loads 0 Difficulty Explorer Special Mode None Game No. 45 Rogue 1 Adventurer 3 Explorer 41 Win Type - Total 0 Types 0/0/0/0/0/0/0/0/0 Lore% 8 Gallery% 17 Achievement% 21 Wizard Run 0 Options --------- Layout 1 ASCII 0 Keyboard 0 Movement Numpad Keybinds 0 Fullscreen 1 Font 32/SmallcapsGlow Map View 50x35 Zoom Use 0% Tactical HUD 0 Map Filters NONE Filters NONE Steam 1 RUN: 69c7eea9-9deb-4790-8419-b1ce47e5c7c3